bitfinex-derivatives/quotes_BTCF0:USTF0_20241023
["timestamp","ask_amount","ask_price","bid_price","bid_amount"]
[1729669102666,0.0778289,66931.0,66930.0,0.45546476]
[1729669103498,0.0180269,66931.0,66930.0,0.62526676]
[1729669103694,0.059799,66934.0,66932.0,0.0598]
[1729669103995,0.059799,66934.0,66933.0,0.27934645]
[1729669104191,0.060199,66934.0,66933.0,0.27934645]
[1729669104395,0.060199,66934.0,66933.0,0.20466476]
[1729669104703,0.060199,66934.0,66933.0,0.20453958]
[1729669106890,0.0004,66934.0,66933.0,0.26433958]
[1729669107091,0.0589,66943.0,66933.0,0.42700404]
[1729669107295,0.118691,66943.0,66942.0,0.471]
[1729669107517,0.060191,66943.0,66942.0,0.74975418]
[1729669107792,0.060191,66943.0,66942.0,0.67506203]
[1729669108394,0.060191,66943.0,66942.0,0.74970933]
[1729669108599,0.0008,66944.0,66942.0,0.74970927]
[1729669108798,0.01882396,66944.0,66943.0,0.059791]
[1729669108997,0.01882396,66944.0,66943.0,0.059991]
[1729669108998,0.0012,66944.0,66943.0,0.059991]
[1729669109193,0.0012,66944.0,66943.0,0.0599206]
[1729669109506,0.0012,66944.0,66943.0,0.05990651]
[1729669109693,0.0012,66944.0,66943.0,0.0002]
[1729669109895,0.0012,66944.0,66943.0,0.05990547]
[1729669110498,0.0184106,66944.0,66943.0,0.0002]
[1729669110794,0.0012,66944.0,66943.0,0.0002]
[1729669111003,0.0012,66944.0,66943.0,0.16990547]
[1729669111292,0.0012,66944.0,66943.0,0.1102]
[1729669111488,0.0012,66944.0,66943.0,0.16990547]
[1729669111977,0.0012,66944.0,66943.0,0.0002]
[1729669112179,0.0012,66944.0,66943.0,0.05988607]
[1729669112385,0.0012,66944.0,66943.0,0.0002]
[1729669113474,0.06099,66944.0,66943.0,0.0002]
[1729669114067,0.06099,66944.0,66943.0,0.05988607]
[1729669114575,0.06099,66944.0,66943.0,0.0002]
[1729669115080,0.06099,66944.0,66943.0,0.05986768]
[1729669115276,0.01881824,66944.0,66943.0,0.16986768]
[1729669115482,0.01881824,66944.0,66943.0,0.0002]
[1729669115676,0.07860824,66944.0,66943.0,0.05985713]
[1729669116091,0.07860824,66944.0,66943.0,0.16985713]
[1729669116278,0.07860824,66944.0,66943.0,0.0002]
[1729669116576,0.07860824,66944.0,66943.0,0.05984605]
[1729669116779,0.07860824,66944.0,66943.0,0.0002]
[1729669118179,0.07860824,66944.0,66943.0,0.05984312]
[1729669118577,0.07860824,66944.0,66943.0,0.0002]
[1729669120784,0.07860824,66944.0,66943.0,0.05983276]
[1729669121281,0.07860824,66944.0,66943.0,0.05983081]
[1729669122083,0.07860824,66944.0,66943.0,0.0002]
[1729669122499,0.07860824,66944.0,66943.0,0.361]
[1729669125085,0.0012,66944.0,66943.0,0.530791]
[1729669125876,0.06099,66944.0,66943.0,0.530791]
[1729669128384,0.0012,66944.0,66943.0,0.530791]
[1729669130985,0.0012,66944.0,66943.0,0.891591]
[1729669131184,0.06099,66944.0,66943.0,0.891591]
[1729669131790,0.06099,66944.0,66943.0,0.98554048]
[1729669134294,0.06099,66944.0,66943.0,1.07510072]
[1729669134715,0.0012,66944.0,66943.0,1.07510072]
[1729669135193,0.06099,66944.0,66943.0,0.98554048]
[1729669135393,0.06099,66944.0,66943.0,1.07510072]
[1729669135589,0.06099,66944.0,66943.0,0.98554048]
[1729669135990,0.06099,66944.0,66943.0,0.81574948]
[1729669136387,0.06099,66944.0,66943.0,0.92574948]
[1729669136596,0.06099,66944.0,66943.0,1.01541758]
[1729669138187,0.06099,66944.0,66943.0,1.03574948]
[1729669138691,0.06099,66944.0,66943.0,1.09554048]
[1729669138896,0.06099,66944.0,66943.0,0.98554048]
[1729669139088,0.06099,66944.0,66943.0,0.92574948]
[1729669140696,0.06099,66944.0,66943.0,0.81574948]
[1729669141131,0.507951,66943.0,66940.0,0.07474474]
[1729669141391,0.11,66941.0,66934.0,0.08968188]
[1729669141592,0.059799,66934.0,66933.0,0.0002]
[1729669141785,0.169799,66934.0,66933.0,0.0004]
[1729669142992,0.059802,66930.0,66929.0,0.45719949]
[1729669143195,0.059802,66930.0,66929.0,0.34663949]
[1729669143506,0.059802,66930.0,66929.0,0.45663949]
[1729669144397,0.169802,66930.0,66929.0,0.34663949]
[1729669145017,0.059802,66930.0,66929.0,0.34663949]
[1729669145295,0.059802,66930.0,66929.0,0.39138899]
[1729669146004,0.059802,66930.0,66929.0,0.34663949]
[1729669146307,0.059802,66930.0,66929.0,0.45663949]
[1729669147707,0.07961347,66930.0,66929.0,0.45663949]
[1729669150493,0.07961347,66930.0,66929.0,0.51644249]
[1729669150705,0.01981147,66930.0,66929.0,0.62644249]
[1729669150908,0.0475,66936.0,66929.0,0.62644249]
[1729669150909,0.107297,66936.0,66929.0,0.61138899]
[1729669151104,0.107297,66936.0,66935.0,0.1102]
[1729669151313,0.107697,66936.0,66935.0,0.1102]
[1729669151608,0.0479,66936.0,66935.0,0.169998]
[1729669152905,0.0479,66936.0,66935.0,0.530798]
[1729669153904,0.06822053,66936.0,66935.0,0.57549707]
[1729669155805,0.12801753,66936.0,66935.0,0.51569907]
[1729669156104,0.12801753,66936.0,66935.0,0.361]
[1729669156908,0.23801753,66936.0,66935.0,0.361]
[1729669160202,0.12801753,66936.0,66935.0,0.361]
[1729669162709,0.23801753,66936.0,66935.0,0.361]
[1729669164214,0.23801753,66936.0,66929.0,0.0002]
[1729669164215,0.059802,66930.0,66929.0,0.0002]
[1729669164408,0.229802,66930.0,66929.0,0.0004]
[1729669165613,0.059802,66930.0,66929.0,0.0004]
[1729669166412,0.167842,66930.0,66929.0,0.0004]
[1729669170508,0.059802,66930.0,66929.0,0.0004]
[1729669172816,0.165402,66930.0,66929.0,0.0004]
[1729669178115,0.059802,66930.0,66929.0,0.0004]
[1729669178322,0.059802,66930.0,66929.0,0.1704]
[1729669180910,0.3608,66935.0,66929.0,0.1704]
[1729669181112,0.059802,66931.0,66929.0,0.1704]
[1729669181419,0.3612,66935.0,66929.0,0.21509907]
[1729669181420,0.059802,66930.0,66929.0,0.21509907]
[1729669182315,0.059802,66930.0,66929.0,0.1704]
[1729669182819,0.059802,66930.0,66929.0,0.04518599]
[1729669183014,0.059802,66930.0,66929.0,0.0004]
[1729669183525,0.059802,66930.0,66929.0,0.04519299]
[1729669183820,0.059802,66930.0,66929.0,0.04519251]
[1729669184015,0.059802,66930.0,66929.0,0.0004]
[1729669200635,0.059799,66934.0,66929.0,0.0004]
[1729669200831,0.0004,66934.0,66933.0,0.471]
[1729669201026,0.0004,66934.0,66933.0,0.56453319]
[1729669201228,0.0012,66944.0,66933.0,0.56413922]
[1729669201430,0.06139,66944.0,66943.0,0.1102]
[1729669201835,0.08145666,66944.0,66943.0,0.1102]
[1729669202239,0.02166666,66944.0,66943.0,0.279991]
[1729669202645,0.0008,66953.0,66943.0,0.66832]
[1729669202940,0.001,66953.0,66952.0,0.3612]
[1729669203327,0.060782,66953.0,66952.0,0.3612]
[1729669203732,0.08145355,66953.0,66952.0,0.3612]
[1729669208944,0.44225355,66953.0,66952.0,0.0004]
[1729669209146,0.05979,66944.0,66942.0,0.3608]
[1729669209443,0.16979,66944.0,66943.0,0.0006]
[1729669212346,0.05979,66944.0,66943.0,0.0006]
[1729669212940,0.05979,66944.0,66943.0,0.04532742]
[1729669215047,0.08021893,66944.0,66943.0,0.04532742]
[1729669218046,0.08021893,66944.0,66943.0,0.0006]
[1729669218936,0.19021893,66944.0,66943.0,0.0006]
[1729669222354,0.08021893,66944.0,66943.0,0.0006]
[1729669223047,0.08021893,66944.0,66943.0,0.1106]
[1729669223956,0.08021893,66944.0,66943.0,0.15532742]
[1729669224355,0.08021893,66944.0,66943.0,0.1106]
[1729669227564,0.08021893,66944.0,66943.0,0.17023656]
[1729669227753,0.08021893,66944.0,66943.0,0.17029712]
[1729669228057,0.08021893,66944.0,66943.0,0.1106]
[1729669228453,0.08021893,66944.0,66943.0,0.170391]
[1729669228652,0.02042893,66944.0,66943.0,0.280391]
[1729669228857,0.10388,66951.0,66943.0,0.32571335]
[1729669229057,0.0002,66951.0,66950.0,0.3608]
[1729669229252,0.0002,66951.0,66950.0,0.4712]
[1729669230558,0.02075594,66951.0,66950.0,0.4712]
[1729669230860,0.0002,66951.0,66950.0,0.4712]
[1729669231260,0.059984,66951.0,66950.0,0.4712]
[1729669231457,0.059984,66951.0,66950.0,0.3612]
[1729669232860,0.08052983,66951.0,66950.0,0.3612]
[1729669235075,0.19052983,66951.0,66950.0,0.3612]
[1729669237559,0.19052983,66951.0,66950.0,0.40602159]
[1729669238669,0.19052983,66951.0,66950.0,0.3612]
[1729669240061,0.19052983,66951.0,66950.0,0.0004]
[1729669240269,0.05979,66944.0,66943.0,0.0006]
[1729669240564,0.11,66941.0,66934.0,0.05976068]
[1729669240775,0.52447,66944.0,66934.0,0.0002]
[1729669240776,0.530598,66935.0,66934.0,0.0002]
[1729669241165,0.169798,66935.0,66934.0,0.0002]
[1729669242273,0.229798,66935.0,66934.0,0.0002]
[1729669242776,0.059802,66930.0,66929.0,0.0004]
[1729669242979,0.229802,66930.0,66929.0,0.0006]
[1729669244076,0.273702,66930.0,66929.0,0.0006]
[1729669244469,0.0206197,66935.0,66929.0,0.1706]
[1729669244670,0.059799,66934.0,66929.0,0.1706]
[1729669245072,0.0004,66935.0,66933.0,0.17]
[1729669245275,0.0004,66935.0,66934.0,0.0002]
[1729669245276,0.0008,66935.0,66934.0,0.0002]
[1729669245470,0.0008,66935.0,66934.0,0.059999]
[1729669245676,0.0008,66935.0,66934.0,0.466899]
[1729669246068,0.0008,66935.0,66934.0,0.52665968]
[1729669248071,0.0008,66935.0,66934.0,0.466899]
[1729669249473,0.0008,66935.0,66934.0,0.4071]
[1729669249681,0.060598,66935.0,66934.0,0.0002]
[1729669257779,0.060598,66935.0,66934.0,0.361]
[1729669257979,0.060598,66935.0,66934.0,0.0002]
[1729669258781,0.060598,66935.0,66934.0,0.361]
[1729669259984,0.060598,66935.0,66934.0,0.0002]
[1729669260980,0.059802,66930.0,66929.0,0.0006]
[1729669261181,0.229802,66930.0,66929.0,0.0008]
[1729669261992,0.059802,66930.0,66929.0,0.0008]
[1729669263293,0.229802,66930.0,66929.0,0.0008]
[1729669263681,0.590602,66930.0,66929.0,0.0008]
[1729669265685,0.059809,66922.0,66921.0,0.0002]
[1729669265992,0.229809,66922.0,66921.0,0.0004]
[1729669266889,0.059809,66922.0,66921.0,0.0004]
[1729669267387,0.229809,66922.0,66921.0,0.0004]
[1729669268287,0.229809,66922.0,66914.0,0.3608]
[1729669268288,0.229809,66922.0,66909.0,0.04681051]
[1729669268487,0.05982,66910.0,66909.0,0.04701051]
[1729669269604,0.42062,66910.0,66909.0,0.04701051]
[1729669269896,0.59062,66910.0,66909.0,0.04701051]
[1729669270588,0.59062,66910.0,66909.0,0.00714171]
[1729669270897,2.09062,66910.0,66909.0,0.0002]
[1729669271201,0.059822,66908.0,66907.0,0.0004]
[1729669271690,0.059822,66908.0,66907.0,0.0006]
[1729669273294,0.508222,66908.0,66907.0,0.0006]
[1729669273500,0.508222,66908.0,66901.0,0.08945484]
[1729669273501,0.059827,66902.0,66901.0,0.08945484]
[1729669273796,0.698067,66902.0,66901.0,0.0002]
[1729669274189,0.059828,66901.0,66900.0,5.83827476]
[1729669274498,0.059828,66901.0,66900.0,5.83767476]
[1729669274798,0.69249317,66901.0,66900.0,5.76281961]
[1729669275500,0.69249317,66901.0,66900.0,5.7579923]
[1729669275692,0.79993317,66901.0,66900.0,5.7579923]
[1729669275888,0.67417705,66901.0,66900.0,5.7579923]
[1729669276690,0.19158985,66901.0,66900.0,5.7579923]
[1729669277493,0.08414985,66901.0,66900.0,5.7579923]
[1729669277700,0.19158985,66901.0,66900.0,5.7579923]
[1729669279002,0.08414985,66901.0,66900.0,5.7579923]
[1729669279202,0.19158985,66901.0,66900.0,5.7579923]
[1729669280204,0.08414985,66901.0,66900.0,5.7579923]
[1729669280505,0.19158985,66901.0,66900.0,5.7579923]
[1729669281811,0.19162985,66901.0,66900.0,5.7579923]
[1729669283896,0.08414985,66901.0,66900.0,5.7579923]
[1729669284111,0.02432185,66901.0,66900.0,5.7579923]
[1729669284304,0.46904,66902.0,66900.0,5.7579923]
[1729669284609,0.3855041,66902.0,66901.0,0.0002]
[1729669287104,0.0247041,66902.0,66901.0,0.060028]
[1729669287305,0.0247041,66902.0,66901.0,0.230028]
[1729669289206,0.0004,66902.0,66901.0,0.230028]
[1729669289407,0.0004,66902.0,66901.0,0.0002]
[1729669289704,0.230227,66902.0,66901.0,0.0002]
[1729669295242,0.060227,66902.0,66901.0,0.0002]
[1729669299327,0.169627,66902.0,66901.0,0.0002]
[1729669305328,0.530427,66902.0,66901.0,0.0002]
[1729669305948,0.700427,66902.0,66901.0,0.0002]
[1729669306435,0.640427,66902.0,66901.0,0.0002]
[1729669308135,0.640427,66902.0,66900.0,5.7587923]
[1729669308333,0.059828,66901.0,66900.0,5.7581923]
[1729669308941,0.508268,66901.0,66900.0,5.7581923]
[1729669310049,0.556868,66901.0,66900.0,5.72766187]
[1729669310338,0.666868,66901.0,66900.0,5.72766187]
[1729669310727,0.556868,66901.0,66900.0,5.72766187]
[1729669310934,0.666868,66901.0,66900.0,5.69919831]
[1729669311842,0.556868,66901.0,66900.0,5.69919831]
[1729669312041,0.666868,66901.0,66900.0,5.69919831]
[1729669312649,0.556868,66901.0,66900.0,5.69919831]
[1729669313438,0.666868,66901.0,66900.0,5.69919831]
[1729669315044,0.666868,66901.0,66900.0,5.34919831]
[1729669316537,0.556868,66901.0,66900.0,5.34919831]
[1729669316938,0.108428,66901.0,66900.0,5.34919831]
[1729669317138,0.556868,66901.0,66900.0,5.34919831]
[1729669317537,0.108428,66901.0,66900.0,5.34919831]
[1729669318247,0.217868,66901.0,66900.0,5.34919831]
[1729669318549,0.666308,66901.0,66900.0,5.34919831]
[1729669319341,1.387908,66901.0,66900.0,5.34919831]
[1729669319969,1.497908,66901.0,66900.0,5.34919831]
[1729669320145,1.387908,66901.0,66900.0,5.34919831]
[1729669321255,1.387908,66901.0,66900.0,5.32073432]
[1729669323450,1.387908,66901.0,66900.0,5.29031454]
[1729669325153,1.229868,66901.0,66900.0,5.29031454]
[1729669325365,1.000108,66901.0,66900.0,5.26031454]
[1729669326160,0.891428,66901.0,66900.0,5.26031454]
[1729669326341,1.000108,66901.0,66900.0,5.26031454]
[1729669326564,0.781428,66901.0,66900.0,5.26031454]
[1729669326746,1.000108,66901.0,66900.0,5.26031454]
[1729669328940,2.54270594,66901.0,66900.0,5.26031454]
[1729669329956,2.391428,66901.0,66900.0,5.26031454]
[1729669330146,2.500108,66901.0,66900.0,5.26031454]
[1729669331245,2.500108,66901.0,66900.0,5.23185012]
[1729669331846,2.391428,66901.0,66900.0,5.23185012]
[1729669332048,2.500108,66901.0,66900.0,5.23185012]
[1729669332763,2.391428,66901.0,66900.0,5.23185012]
[1729669332947,2.500108,66901.0,66900.0,5.23185012]
[1729669333344,2.500108,66901.0,66900.0,5.20117012]
[1729669335161,2.391428,66901.0,66900.0,5.20117012]
[1729669335350,0.781428,66901.0,66900.0,5.20117012]
[1729669335552,1.000108,66901.0,66900.0,5.20117012]
[1729669335951,2.500108,66901.0,66900.0,5.20117012]
[1729669337562,2.391428,66901.0,66900.0,5.20117012]
[1729669337863,2.500108,66901.0,66900.0,5.20117012]
[1729669338653,2.390108,66901.0,66900.0,5.20117012]
[1729669338850,0.890108,66901.0,66900.0,5.20117012]
[1729669339662,1.000108,66901.0,66900.0,5.20117012]
[1729669340153,0.891428,66901.0,66900.0,5.20117012]
[1729669340356,0.781428,66901.0,66900.0,5.20117012]
[1729669340561,0.890108,66901.0,66900.0,5.20117012]
[1729669345964,0.890068,66901.0,66900.0,5.20117012]
[1729669347066,0.781428,66901.0,66900.0,5.20117012]
[1729669347367,0.890068,66901.0,66900.0,5.20117012]
[1729669349359,0.7216,66901.0,66900.0,5.31117012]
[1729669349560,0.6465,66901.0,66900.0,5.31117012]
[1729669350164,0.6465,66901.0,66900.0,5.81938393]
[1729669350465,0.6465,66901.0,66900.0,5.85441012]
[1729669350768,0.3608,66912.0,66901.0,0.44844]
[1729669350968,0.0004,66912.0,66911.0,0.11]
[1729669351158,0.0004,66912.0,66911.0,0.1102]
[1729669351376,0.10864,66919.0,66914.0,0.059817]
[1729669351563,0.10904,66919.0,66915.0,0.1581]
[1729669351758,0.0004,66919.0,66915.0,0.1581]
[1729669351962,0.0004,66919.0,66918.0,0.1102]
[1729669353077,0.0004,66919.0,66918.0,0.0002]
[1729669353571,0.060212,66919.0,66918.0,0.0002]
[1729669353769,0.170212,66919.0,66918.0,0.0002]
[1729669353970,0.215612,66919.0,66918.0,0.0002]
[1729669354575,0.105612,66919.0,66918.0,0.0002]
[1729669357661,0.215612,66919.0,66918.0,0.0002]
[1729669357868,0.059818,66912.0,66911.0,0.0002]
[1729669358075,0.059818,66912.0,66911.0,0.0004]
[1729669358076,0.527418,66912.0,66911.0,0.0004]
[1729669358572,0.572518,66912.0,66911.0,0.0004]
[1729669358926,0.059828,66901.0,66900.0,5.20117012]
[1729669359175,0.059828,66901.0,66900.0,5.20137012]
[1729669359176,0.169828,66901.0,66900.0,5.20137012]
[1729669360377,0.229828,66901.0,66900.0,5.20137012]
[1729669361572,0.336628,66901.0,66900.0,5.20137012]
[1729669362478,0.36096111,66901.0,66900.0,5.20137012]
[1729669366687,0.36096111,66901.0,66900.0,5.10513011]
[1729669367574,0.25416111,66901.0,66900.0,5.10513011]
[1729669367768,0.36096111,66901.0,66900.0,5.10513011]
[1729669367969,0.36096111,66901.0,66900.0,5.07610978]
[1729669369482,0.36096111,66901.0,66900.0,5.04354978]
[1729669372371,0.36096111,66901.0,66900.0,4.11975996]
[1729669372577,0.36096111,66901.0,66900.0,4.0987993]
[1729669372778,0.36096111,66901.0,66900.0,3.98784016]
[1729669373877,0.36096111,66901.0,66900.0,3.96996016]
[1729669374187,0.25416111,66901.0,66900.0,3.93550003]
[1729669374685,0.36096111,66901.0,66900.0,3.93550003]
[1729669374884,0.36096111,66901.0,66900.0,3.93152003]
[1729669375275,0.36096111,66901.0,66900.0,3.8700547]
[1729669376679,0.36096111,66901.0,66900.0,3.8536447]
[1729669378581,0.36096111,66901.0,66900.0,3.8343647]
[1729669380487,0.41096111,66901.0,66900.0,3.8343647]
[1729669381191,0.41096111,66901.0,66900.0,3.7743047]
[1729669382687,0.41096111,66901.0,66900.0,3.7426847]
[1729669382887,0.41096111,66901.0,66900.0,3.7045947]
[1729669383087,0.41096111,66901.0,66900.0,3.3740947]
[1729669383388,0.41096111,66901.0,66900.0,3.1829527]
[1729669383590,0.41096111,66901.0,66900.0,3.0458167]
[1729669383779,0.41096111,66901.0,66900.0,2.5142087]
[1729669384089,0.40920111,66901.0,66900.0,2.5142087]
[1729669384281,1.90920111,66901.0,66900.0,2.5142087]
[1729669384586,1.90920111,66901.0,66900.0,2.5029787]
[1729669384988,1.90920111,66901.0,66900.0,2.4967997]
[1729669386188,1.80416111,66901.0,66900.0,2.4967997]
[1729669386388,1.90920111,66901.0,66900.0,2.40005425]
[1729669388278,1.95337737,66901.0,66900.0,2.40005425]
[1729669388590,1.90920111,66901.0,66900.0,2.40005425]
[1729669390088,1.69416111,66901.0,66900.0,2.40005425]
[1729669390396,1.79920111,66901.0,66900.0,2.40005425]
[1729669390994,1.69416111,66901.0,66900.0,2.40005425]
[1729669391189,1.79920111,66901.0,66900.0,2.40005425]
[1729669391694,1.90920111,66901.0,66900.0,2.40005425]
[1729669392595,1.79920111,66901.0,66900.0,2.37608198]
[1729669392782,1.90920111,66901.0,66900.0,2.37608198]
[1729669393593,1.79920111,66901.0,66900.0,2.37608198]
[1729669395091,0.18920111,66901.0,66900.0,2.37608198]
[1729669395292,0.29920111,66901.0,66900.0,2.37608198]
[1729669396891,0.08416111,66901.0,66900.0,2.37608198]
[1729669397094,0.29920111,66901.0,66900.0,2.37608198]
[1729669411899,0.29920111,66901.0,66900.0,2.34453053]
[1729669412204,0.40920111,66901.0,66900.0,2.34453053]
[1729669412404,0.29920111,66901.0,66900.0,2.34453053]
[1729669412606,0.40920111,66901.0,66900.0,2.34453053]
[1729669412804,0.29920111,66901.0,66900.0,2.34453053]
[1729669415605,0.34339673,66901.0,66900.0,2.34453053]
[1729669417502,0.29920111,66901.0,66900.0,2.34453053]
[1729669417809,1.84346178,66901.0,66900.0,2.34453053]
[1729669418199,1.84346717,66901.0,66900.0,2.34453053]
[1729669418709,0.34346717,66901.0,66900.0,2.34453053]
[1729669419009,0.34353001,66901.0,66900.0,2.34453053]
[1729669419607,0.34362735,66901.0,66900.0,2.34453053]
[1729669420104,0.40722735,66901.0,66900.0,2.31171053]
[1729669420305,0.40708094,66901.0,66900.0,2.31171053]
[1729669420512,0.40723642,66901.0,66900.0,2.31171053]
[1729669420710,0.36280111,66901.0,66900.0,2.31171053]
[1729669421113,0.40712351,66901.0,66900.0,2.31171053]
[1729669421305,0.51712351,66901.0,66900.0,2.31171053]
[1729669421500,0.40712351,66901.0,66900.0,2.31171053]
[1729669421903,0.36280111,66901.0,66900.0,2.31171053]
[1729669422107,0.40704886,66901.0,66900.0,2.31171053]
[1729669422408,0.40705102,66901.0,66900.0,2.31171053]
[1729669422708,0.5171396,66901.0,66900.0,2.27021953]
[1729669423212,0.5171396,66901.0,66900.0,2.23426343]
[1729669423712,0.5171396,66901.0,66900.0,2.13740343]
[1729669424919,0.51709925,66901.0,66900.0,2.13740343]
[1729669426710,0.51709925,66901.0,66900.0,2.10455343]
[1729669427916,0.51709925,66901.0,66900.0,2.09530143]
[1729669429210,0.51709925,66901.0,66900.0,2.02489281]
[1729669429612,0.51679138,66901.0,66900.0,2.02489281]
[1729669429817,0.51679138,66901.0,66900.0,2.01354181]
[1729669431907,0.47280111,66901.0,66900.0,1.96503181]
[1729669432320,1.19440111,66901.0,66900.0,1.96503181]
[1729669432623,1.19440111,66901.0,66900.0,1.89551181]
[1729669433111,1.19440111,66901.0,66900.0,1.88436481]
[1729669433315,1.23826742,66901.0,66900.0,1.83645577]
[1729669433618,1.23826742,66901.0,66900.0,0.99898574]
[1729669433807,1.39949272,66901.0,66900.0,0.61248318]
[1729669434005,1.39949272,66901.0,66900.0,0.08199318]
[1729669434209,2.89949272,66901.0,66900.0,0.0018]
[1729669434418,0.059844,66883.0,66882.0,0.04488834]
[1729669434624,0.059845,66882.0,66881.0,0.04488834]
[1729669434915,0.059845,66882.0,66881.0,0.04508834]
[1729669435222,0.059845,66882.0,66881.0,0.0002]
[1729669439644,0.02014094,66882.0,66881.0,0.0002]
[1729669439821,0.169844,66884.0,66881.0,0.0002]
[1729669440020,0.059845,66883.0,66881.0,0.0002]
[1729669440317,0.059845,66882.0,66881.0,0.0002]
[1729669440520,0.0004,66884.0,66883.0,0.0002]
[1729669440722,0.0004,66884.0,66883.0,0.0461]
[1729669440926,0.0008,66884.0,66883.0,0.49466]
[1729669441231,0.0008,66884.0,66883.0,0.0461]
[1729669441819,0.0008,66884.0,66883.0,0.49466]
[1729669443224,0.0008,66884.0,66883.0,0.0461]
[1729669443926,0.0008,66884.0,66883.0,0.09096596]
[1729669444120,0.0008,66884.0,66883.0,0.20096596]
[1729669444321,0.0008,66884.0,66883.0,0.20092048]
[1729669444622,0.0008,66884.0,66883.0,0.1561]
[1729669445017,0.0008,66884.0,66883.0,0.20092101]
[1729669446631,0.0008,66884.0,66883.0,0.1561]
[1729669447132,0.02043168,66885.0,66883.0,0.1561]
[1729669447438,0.02043168,66885.0,66884.0,0.04502509]
[1729669447439,0.0004,66885.0,66884.0,0.04502509]
[1729669448222,0.0004,66885.0,66884.0,0.0002]
[1729669448628,0.0004,66885.0,66884.0,0.04502509]
[1729669448943,0.060243,66885.0,66884.0,0.04502509]
[1729669449636,0.170243,66885.0,66884.0,0.0002]
[1729669449937,0.19017628,66885.0,66884.0,0.0002]
[1729669454337,0.55097628,66885.0,66884.0,0.0002]
[1729669457439,0.55093584,66885.0,66884.0,0.0002]
[1729669463543,0.67013584,66885.0,66884.0,0.0002]
[1729669463852,0.56013584,66885.0,66884.0,0.0002]
[1729669473042,0.19933584,66885.0,66884.0,0.0002]
[1729669473245,0.56013584,66885.0,66884.0,0.0002]
[1729669474240,0.67013584,66885.0,66884.0,0.0002]
[1729669474748,0.56013584,66885.0,66884.0,0.0002]
[1729669475251,0.67013584,66885.0,66884.0,0.0002]
[1729669478454,0.44093584,66885.0,66884.0,0.0002]
[1729669478649,0.78013584,66885.0,66884.0,0.0002]
[1729669479151,0.67013584,66885.0,66884.0,0.0002]
[1729669479548,0.78013584,66885.0,66884.0,0.0002]
[1729669480653,0.059846,66881.0,66880.0,0.04488637]
[1729669480956,0.169846,66881.0,66880.0,0.04508637]
[1729669481941,0.169846,66881.0,66880.0,0.0002]
[1729669483147,0.289046,66881.0,66880.0,0.0002]
[1729669488957,0.289046,66881.0,66880.0,0.04508637]
[1729669489459,0.169846,66881.0,66880.0,0.0002]
[1729669489654,0.283646,66881.0,66880.0,0.04508637]
[1729669490066,0.283646,66881.0,66880.0,0.0002]
[1729669490358,0.283646,66881.0,66879.0,0.04488637]
[1729669490359,0.059847,66880.0,66879.0,0.04478637]
[1729669490560,0.059849,66878.0,66877.0,0.05984849]
[1729669490764,0.05985,66877.0,66876.0,0.05984849]
[1729669490958,0.11,66877.0,66876.0,0.0002]
[1729669491157,0.16985,66877.0,66876.0,0.0002]
[1729669492459,0.28365,66877.0,66876.0,0.0002]
[1729669493565,0.28365,66877.0,66876.0,0.06006645]
[1729669494470,0.28365,66877.0,66876.0,0.06006577]
[1729669494768,0.28365,66877.0,66876.0,0.0002]
[1729669495371,0.30392041,66877.0,66876.0,0.0002]
[1729669496663,0.30392041,66877.0,66876.0,0.06006684]
[1729669497362,0.19012041,66877.0,66876.0,0.06006684]
[1729669497667,0.30392041,66877.0,66876.0,0.06006796]
[1729669500162,0.19012041,66877.0,66876.0,0.06006796]
[1729669500362,0.30392041,66877.0,66876.0,0.06006796]
[1729669501268,0.30392041,66877.0,66876.0,0.0002]
[1729669503564,0.30392041,66877.0,66876.0,0.06006796]
[1729669503766,0.30392041,66877.0,66876.0,0.0002]
[1729669504073,0.19012041,66877.0,66876.0,0.0002]
[1729669504272,0.30392041,66877.0,66876.0,0.0002]
[1729669505172,0.19392041,66877.0,66876.0,0.0002]
[1729669505477,0.19012041,66877.0,66876.0,0.0002]
[1729669505665,0.1138,66877.0,66876.0,0.471]
[1729669505866,0.1138,66878.0,66876.0,0.53086796]
[1729669506175,0.0004,66878.0,66877.0,0.16636796]
[1729669506368,0.0004,66878.0,66877.0,0.1065]
[1729669508473,0.0004,66878.0,66877.0,0.16636981]
[1729669508871,0.060249,66878.0,66877.0,0.16636981]
[1729669509782,0.060249,66878.0,66877.0,0.11226981]
[1729669510879,0.060249,66878.0,66877.0,0.0524]
[1729669511273,0.060249,66878.0,66877.0,0.11226719]
[1729669511469,0.060249,66878.0,66877.0,0.0524]
[1729669516067,0.060249,66878.0,66877.0,0.4132]
[1729669517286,0.00084,66888.0,66877.0,1.6818]
[1729669517495,0.11,66904.0,66887.0,0.471]
[1729669517678,0.169829,66900.0,66899.0,0.3608]
[1729669518382,0.11,66900.0,66899.0,0.3608]
[1729669519788,0.0518,66902.0,66899.0,0.3608]
[1729669519990,0.0522,66902.0,66901.0,0.0002]
[1729669520581,0.0004,66902.0,66901.0,0.0002]
[1729669528490,0.060227,66902.0,66901.0,0.0002]
[1729669533291,0.060227,66902.0,66901.0,0.7218]
[1729669534997,0.060227,66902.0,66901.0,0.471]
[1729669549197,0.053,66912.0,66901.0,0.471]
[1729669549396,0.059819,66911.0,66910.0,0.4708]
[1729669552797,0.059819,66911.0,66910.0,0.3608]
[1729669553004,0.059819,66911.0,66910.0,0.2844]
[1729669553211,0.059823,66907.0,66904.0,0.05981475]
[1729669553520,0.059826,66904.0,66903.0,0.05981475]
[1729669553708,0.059826,66904.0,66903.0,0.06001475]
[1729669555508,0.059826,66904.0,66903.0,0.0002]
[1729669556208,0.059826,66904.0,66903.0,0.06001475]
[1729669556403,0.059826,66904.0,66903.0,0.0002]
[1729669558712,0.07711357,66904.0,66903.0,0.0002]
[1729669559612,0.07711357,66904.0,66894.0,0.3608]
[1729669559915,0.07711357,66904.0,66894.0,0.361]
[1729669559916,0.169834,66895.0,66894.0,0.361]
[1729669560116,0.059834,66895.0,66894.0,0.361]
[1729669563534,0.07722549,66895.0,66894.0,0.361]
[1729669570529,0.18722549,66895.0,66894.0,0.361]
[1729669572428,0.30106549,66895.0,66894.0,0.361]
[1729669572627,0.19106549,66895.0,66894.0,0.361]